[Event "RUS-ch Rapid Men 2018"]
[Site "Sochi"]
[Date "2018.10.06"]
[Round "8"]
[White "Drygalov, Sergey"]
[Black "Inozemtsev, Sergei"]
[Result "1-0"]
[ECO "E15"]
[WhiteElo "2446"]
[BlackElo "2310"]
[Annotator "NA"]
[PlyCount "77"]
[EventDate "2018.10.05"]
[EventType "swiss"]
[EventCountry "RUS"]
[SourceTitle "playchess.com"]
[Source "ChessBase"]
[SourceQuality "1"]
[TimeControl "900+10"]

1. d4 {[%emt 0:00:00]} Nf6 {[%emt 0:00:44]} 2. c4 {[%emt 0:00:00]} e6 {[%emt 0:00:13]} 3. Nf3 {[%emt 0:00:00]} b6 {[%emt 0:01:22]} 4. g3 {[%emt 0:00:00]} Ba6 {[%emt 0:00:01]} 5. Qc2 {[%emt 0:00:00]} c5 {[%emt 0:00:04]} 6. d5 {[%emt 0:00:05]} exd5 {[%emt 0:01:32]} 7. cxd5 {[%emt 0:00:01]} g6 {[%emt 0:01:52]} 8. Bg2 {[%emt 0:00:10]} Bg7 {[%emt 0:00:05]} 9. O-O {[%emt 0:00:03]} O-O {[%emt 0:00:03]} 10. Nc3 {[%emt 0:00:10]} Re8 {[%emt 0:00:34]} 11. Re1 {[%emt 0:00:18]} b5 {[%emt 0:00:20]} 12. a3 {[%emt 0:04:21]} d6 {[%emt 0:00:20]} 13. e4 {[%emt 0:01:09]} Nbd7 {[%emt 0:00:08]} 14. Bf4 {[%emt 0:00:53]} Qb6 {[%emt 0:01:20]} 15. e5 {[%emt 0:02:08]} Nh5 {[%emt 0:01:53]} 16. e6 {[%emt 0:00:10]} Nf8 {[%emt 0:00:03]} 17. exf7+ {[%emt 0:00:22]} Kxf7 {[%emt 0:00:02]} 18. Be3 {[%emt 0:00:11]} Kg8 {[%emt 0:00:32]} 19. Ng5 {[%emt 0:01:31]} Rab8 {[%emt 0:02:46]} 20. b4 {[%emt 0:01:07]} Bd4 {[%emt 0:00:56]} 21. Bxd4 {[%emt 0:01:22]} cxd4 {[%emt 0:00:03]} 22. Nce4 {[%emt 0:00:03]} Kg7 {[%emt 0:02:30]} 23. Qd2 {[%emt 0:01:03]} Bc8 {[%emt 0:00:18]} 24. Nf3 {[%emt 0:00:15]} Bf5 {[%emt 0:00:11]} 25. Nxd4 {[%emt 0:00:05]} Bxe4 {[%emt 0:00:06]} 26. Bxe4 {[%emt 0:00:02]} Nf6 {[%emt 0:00:07]} 27. Bf3 {[%emt 0:00:02]} N6d7 {[%emt 0:00:25]} 28. Nc6 {[%emt 0:00:36]} Ne5 {[%emt 0:00:16]} 29. Qb2 {[%emt 0:00:34]} Nfd7 {[%emt 0:00:27]} 30. Bg4 {[%emt 0:01:02]} Nf6 {[%emt 0:00:17]} 31. Nxe5 {[%emt 0:00:15]} dxe5 {[%emt 0:00:18]} 32. Be6 {[%emt 0:00:03]} Qd4 {[%emt 0:00:12]} 33. Qxd4 {[%emt 0:00:07]} exd4 {[%emt 0:00:01]} 34. Rad1 {[%emt 0:00:02]} Rbd8 {[%emt 0:00:10]} 35. Re5 {[%emt 0:00:35]} Rd6 {[%emt 0:00:27]} 36. Rxd4 {[%emt 0:00:08]} Nd7 {[%emt 0:00:05]} 37. Re3 {[%emt 0:00:05]} Nb6 {[%emt 0:00:01]} 38. Ree4 {[%emt 0:00:41]} Red8 {[%emt 0:00:20]} 39. Rf4 {[%emt 0:00:04]} 1-0

[Event "RUS-ch Rapid Men 2018"]
[Site "Sochi"]
[Date "2018.10.06"]
[Round "8"]
[White "Sharafiev, Azat"]
[Black "Iljiushenok, Ilia"]
[Result "0-1"]
[ECO "E99"]
[WhiteElo "2432"]
[BlackElo "2539"]
[Annotator "ChessBase"]
[PlyCount "74"]
[EventDate "2018.10.05"]
[EventType "swiss"]
[EventCountry "RUS"]
[SourceTitle "playchess.com"]
[Source "ChessBase"]
[SourceQuality "1"]
[TimeControl "900+10"]

1. c4 {[%emt 0:00:00]} Nf6 {[%emt 0:00:00]} 2. Nc3 {[%emt 0:00:00]} g6 {[%emt 0:00:00]} 3. e4 {[%emt 0:00:07]} d6 {[%emt 0:00:00]} 4. d4 {[%emt 0:00:22]} Bg7 {[%emt 0:00:00]} 5. Nf3 {[%emt 0:00:03]} O-O {[%emt 0:00:00]} 6. Be2 {[%emt 0:00:01]} e5 {[%emt 0:00:00]} 7. O-O {[%emt 0:00:02]} Nc6 {[%emt 0:00:00]} 8. d5 {[%emt 0:00:22]} Ne7 {[%emt 0:00:01]} 9. Ne1 {[%emt 0:00:19]} Nd7 {[%emt 0:00:05]} 10. f3 {[%emt 0:00:06]} f5 {[%emt 0:00:02]} 11. g4 {[%emt 0:00:01]} Kh8 {[%emt 0:00:38]} 12. Be3 {[%emt 0:00:16]} Ng8 {[%emt 0:01:01]} 13. Nd3 {[%emt 0:00:51]} Bh6 {[%emt 0:00:24]} 14. Bf2 {[%emt 0:00:48]} Bg5 {[%emt 0:01:17]} 15. Qe1 {[%emt 0:01:46]} Rf7 {[%emt 0:00:12]} 16. h4 {[%emt 0:00:44]} Be7 {[%emt 0:00:01]} 17. Kg2 {[%emt 0:00:14]} fxg4 {[%emt 0:01:04]} 18. fxg4 {[%emt 0:00:03]} Rxf2+ {[%emt 0:00:03]} 19. Qxf2 {[%emt 0:01:01]} Bxh4 {[%emt 0:00:01]} 20. Qe3 {[%emt 0:00:22]} Bg5 {[%emt 0:00:49]} 21. Qg3 {[%emt 0:00:07]} Nh6 {[%emt 0:00:40]} 22. c5 {[%emt 0:00:26]} Nf6 {[%emt 0:00:12]} 23. cxd6 {[%emt 0:00:23]} cxd6 {[%emt 0:00:02]} 24. Nxe5 {[%emt 0:00:15]} dxe5 {[%emt 0:00:22]} 25. Qxe5 {[%emt 0:00:03]} Nf7 {[%emt 0:00:11]} 26. Qd4 {[%emt 0:00:07]} Qd6 {[%emt 0:00:46]} 27. Nb5 {[%emt 0:07:08]} Qe5 {[%emt 0:00:01]} 28. d6 {[%emt 0:01:31]} Bd7 {[%emt 0:00:39]} 29. Rad1 {[%emt 0:00:54]} Bxb5 {[%emt 0:00:24]} 30. Bxb5 {[%emt 0:00:55]} Qxb5 {[%emt 0:00:02]} 31. Rxf6 {[%emt 0:00:04]} Bxf6 {[%emt 0:00:01]} 32. Qxf6+ {[%emt 0:00:01]} Kg8 {[%emt 0:00:01]} 33. Rf1 {[%emt 0:00:08]} Qd7 {[%emt 0:00:38]} 34. e5 {[%emt 0:00:02]} Re8 {[%emt 0:00:03]} 35. Re1 {[%emt 0:00:16]} Qxg4+ {[%emt 0:00:01]} 36. Kh2 {[%emt 0:00:20]} Re6 {[%emt 0:00:42]} 37. Qf2 {[%emt 0:00:23]} Rxe5 {[%emt 0:00:03]} 0-1

[Event "RUS-ch Rapid Men 2018"]
[Site "Sochi"]
[Date "2018.10.06"]
[Round "8"]
[White "Gogolev, Artem"]
[Black "Panarin, Mikhail"]
[Result "1/2-1/2"]
[ECO "A33"]
[WhiteElo "2389"]
[BlackElo "2562"]
[Annotator "ChessBase"]
[PlyCount "46"]
[EventDate "2018.10.05"]
[EventType "swiss"]
[EventCountry "RUS"]
[SourceTitle "playchess.com"]
[Source "ChessBase"]
[SourceQuality "1"]
[TimeControl "900+10"]

1. Nf3 {[%emt 0:00:00]} c5 {[%emt 0:00:00]} 2. c4 {[%emt 0:00:00]} Nc6 {[%emt 0:00:00]} 3. d4 {[%emt 0:00:02]} cxd4 {[%emt 0:00:00]} 4. Nxd4 {[%emt 0:00:02]} Nf6 {[%emt 0:00:05]} 5. Nc3 {[%emt 0:00:03]} e6 {[%emt 0:00:04]} 6. a3 {[%emt 0:00:10]} Be7 {[%emt 0:00:05]} 7. Bf4 {[%emt 0:00:58]} O-O {[%emt 0:02:14]} 8. e3 {[%emt 0:00:21]} d5 {[%emt 0:00:34]} 9. cxd5 {[%emt 0:00:07]} Nxd5 {[%emt 0:00:23]} 10. Nxc6 {[%emt 0:01:32]} bxc6 {[%emt 0:00:01]} 11. Qc2 {[%emt 0:00:11]} Nxc3 {[%emt 0:03:09]} 12. Qxc3 {[%emt 0:00:13]} Bf6 {[%emt 0:00:01]} 13. Be5 {[%emt 0:01:31]} Bxe5 {[%emt 0:00:04]} 14. Qxe5 {[%emt 0:00:02]} Qb6 {[%emt 0:00:32]} 15. Bc4 {[%emt 0:01:23]} Rb8 {[%emt 0:01:11]} 16. b4 {[%emt 0:01:03]} Ba6 {[%emt 0:00:01]} 17. Rc1 {[%emt 0:00:12]} c5 {[%emt 0:00:25]} 18. O-O {[%emt 0:00:30]} cxb4 {[%emt 0:00:19]} 19. axb4 {[%emt 0:00:25]} Rfd8 {[%emt 0:00:56]} 20. Bxa6 {[%emt 0:00:21]} Qxa6 {[%emt 0:00:00]} 21. Rfd1 {[%emt 0:03:08]} h6 {[%emt 0:01:08]} 22. Rxd8+ {[%emt 0:00:46]} Rxd8 {[%emt 0:00:01]} 23. h3 {[%emt 0:00:03]} Qb6 {[%emt 0:00:31]} 1/2-1/2

[Event "RUS-ch Rapid Men 2018"]
[Site "Sochi"]
[Date "2018.10.06"]
[Round "8"]
[White "Slavin, Alexey"]
[Black "Potapov, Pavel"]
[Result "1/2-1/2"]
[ECO "A80"]
[WhiteElo "2364"]
[BlackElo "2515"]
[Annotator "ChessBase"]
[PlyCount "66"]
[EventDate "2018.10.05"]
[EventType "swiss"]
[EventCountry "RUS"]
[SourceTitle "playchess.com"]
[Source "ChessBase"]
[SourceQuality "1"]
[TimeControl "900+10"]

1. d4 {[%emt 0:00:06]} f5 2. Bg5 {[%emt 0:00:17]} h6 {[%emt 0:00:00]} 3. Bh4 {[%emt 0:00:16]} g5 {[%emt 0:00:00]} 4. Bg3 {[%emt 0:00:13]} Nf6 {[%emt 0:00:01]} 5. e3 {[%emt 0:00:25]} Bg7 {[%emt 0:00:28]} 6. c4 {[%emt 0:00:23]} d6 {[%emt 0:00:07]} 7. Nc3 {[%emt 0:00:11]} O-O {[%emt 0:00:10]} 8. h4 {[%emt 0:00:27]} g4 {[%emt 0:00:18]} 9. Bd3 {[%emt 0:00:16]} Nc6 {[%emt 0:00:14]} 10. d5 {[%emt 0:00:30]} Ne5 {[%emt 0:00:08]} 11. Nge2 {[%emt 0:01:32]} Nh5 {[%emt 0:01:10]} 12. Bxe5 {[%emt 0:04:20]} dxe5 {[%emt 0:00:09]} 13. Qb3 {[%emt 0:00:11]} Kh8 {[%emt 0:01:25]} 14. O-O-O {[%emt 0:00:07]} e4 {[%emt 0:00:28]} 15. Bc2 {[%emt 0:00:38]} a6 {[%emt 0:00:02]} 16. c5 {[%emt 0:00:48]} b6 {[%emt 0:00:37]} 17. Nd4 {[%emt 0:01:09]} bxc5 {[%emt 0:00:10]} 18. Ne6 {[%emt 0:00:06]} Bxe6 {[%emt 0:00:32]} 19. dxe6 {[%emt 0:00:01]} Qe8 {[%emt 0:00:04]} 20. Rd7 {[%emt 0:00:26]} g3 {[%emt 0:00:39]} 21. fxg3 {[%emt 0:00:55]} Nxg3 {[%emt 0:00:55]} 22. Rhd1 {[%emt 0:00:08]} Rb8 {[%emt 0:00:38]} 23. Qc4 {[%emt 0:00:20]} Bf6 {[%emt 0:01:09]} 24. Bb3 {[%emt 0:00:11]} c6 {[%emt 0:00:31]} 25. Qxc5 {[%emt 0:00:43]} Qh5 {[%emt 0:01:27]} 26. Rxe7 {[%emt 0:00:37]} Ne2+ {[%emt 0:00:18]} 27. Nxe2 {[%emt 0:01:47]} Qxe2 {[%emt 0:00:03]} 28. Rd2 {[%emt 0:00:17]} Qe1+ {[%emt 0:00:59]} 29. Kc2 {[%emt 0:00:19]} Bxb2 {[%emt 0:03:07]} 30. Rd1 {[%emt 0:01:02]} Qe2+ {[%emt 0:00:01]} 31. Rd2 {[%emt 0:00:11]} Qe1 {[%emt 0:00:04]} 32. Rd1 {[%emt 0:00:15]} Qe2+ {[%emt 0:00:02]} 33. Rd2 {[%emt 0:00:24]} Qe1 {[%emt 0:00:02]} 1/2-1/2

[Event "RUS-ch Rapid Men 2018"]
[Site "Sochi"]
[Date "2018.10.06"]
[Round "8"]
[White "Nazaretyan, Tigran"]
[Black "Usmanov, Vasily"]
[Result "0-1"]
[ECO "E16"]
[WhiteElo "2248"]
[BlackElo "2453"]
[Annotator "ChessBase"]
[PlyCount "114"]
[EventDate "2018.10.05"]
[EventType "swiss"]
[EventCountry "RUS"]
[SourceTitle "playchess.com"]
[Source "ChessBase"]
[SourceQuality "1"]
[TimeControl "900+10"]

1. d4 {[%emt 0:00:00]} Nf6 {[%emt 0:00:01]} 2. c4 {[%emt 0:00:00]} e6 {[%emt 0:00:01]} 3. Nf3 {[%emt 0:00:00]} Bb4+ {[%emt 0:00:01]} 4. Bd2 {[%emt 0:00:09]} Qe7 {[%emt 0:00:01]} 5. g3 {[%emt 0:00:08]} Bxd2+ {[%emt 0:00:01]} 6. Qxd2 {[%emt 0:00:18]} Nc6 {[%emt 0:00:02]} 7. Nc3 {[%emt 0:00:10]} d5 {[%emt 0:00:05]} 8. Bg2 {[%emt 0:01:33]} dxc4 {[%emt 0:00:07]} 9. O-O {[%emt 0:00:17]} O-O {[%emt 0:00:02]} 10. Ne5 {[%emt 0:01:11]} Nxe5 {[%emt 0:00:02]} 11. dxe5 {[%emt 0:00:02]} Nd7 {[%emt 0:00:02]} 12. f4 {[%emt 0:02:39]} Nb6 {[%emt 0:00:32]} 13. Rad1 {[%emt 0:00:25]} Rb8 {[%emt 0:00:06]} 14. e4 {[%emt 0:00:45]} Bd7 {[%emt 0:00:07]} 15. Qe3 {[%emt 0:00:12]} Rfe8 {[%emt 0:02:06]} 16. Rde1 {[%emt 0:00:39]} Bc6 {[%emt 0:00:29]} 17. f5 {[%emt 0:00:35]} Nd7 {[%emt 0:00:26]} 18. Qxa7 {[%emt 0:03:36]} Nxe5 {[%emt 0:00:24]} 19. fxe6 {[%emt 0:00:33]} fxe6 {[%emt 0:01:20]} 20. Qd4 {[%emt 0:00:50]} Nd3 {[%emt 0:01:24]} 21. Re2 {[%emt 0:00:16]} Qc5 {[%emt 0:01:07]} 22. Qxc5 {[%emt 0:00:15]} Nxc5 {[%emt 0:00:01]} 23. Rd2 {[%emt 0:00:37]} Rbd8 {[%emt 0:00:23]} 24. Rfd1 {[%emt 0:00:04]} Rxd2 {[%emt 0:00:43]} 25. Rxd2 {[%emt 0:00:02]} Kf7 {[%emt 0:00:26]} 26. Kf2 {[%emt 0:00:55]} Kf6 {[%emt 0:00:18]} 27. Ke3 {[%emt 0:00:35]} Ke5 {[%emt 0:00:02]} 28. Rf2 {[%emt 0:01:16]} Rd8 {[%emt 0:00:38]} 29. Rf7 {[%emt 0:00:07]} Rd3+ {[%emt 0:00:02]} 30. Ke2 {[%emt 0:00:01]} Rd7 {[%emt 0:00:10]} 31. Rf4 {[%emt 0:01:13]} g5 {[%emt 0:01:33]} 32. Rf1 {[%emt 0:00:36]} Nxe4 {[%emt 0:00:37]} 33. Bxe4 {[%emt 0:00:09]} Bxe4 {[%emt 0:00:02]} 34. Nxe4 {[%emt 0:00:03]} Kxe4 {[%emt 0:00:02]} 35. Rf8 {[%emt 0:00:16]} e5 {[%emt 0:00:55]} 36. Rg8 {[%emt 0:00:17]} h6 {[%emt 0:00:04]} 37. Rg6 {[%emt 0:00:08]} Rd6 {[%emt 0:00:01]} 38. Rg7 {[%emt 0:00:02]} Rb6 {[%emt 0:00:03]} 39. Kd2 {[%emt 0:00:16]} Rxb2+ {[%emt 0:00:08]} 40. Kc3 {[%emt 0:00:01]} Rxa2 {[%emt 0:00:14]} 41. Rxc7 {[%emt 0:00:08]} Rxh2 {[%emt 0:00:04]} 42. Rxc4+ {[%emt 0:00:20]} Kf3 {[%emt 0:00:02]} 43. g4 {[%emt 0:00:11]} e4 {[%emt 0:00:02]} 44. Rc7 {[%emt 0:00:11]} Kxg4 {[%emt 0:00:24]} 45. Kd4 {[%emt 0:00:02]} Rf2 {[%emt 0:00:24]} 46. Kxe4 {[%emt 0:00:16]} Rf4+ {[%emt 0:00:02]} 47. Ke3 {[%emt 0:00:01]} b5 {[%emt 0:00:01]} 48. Rc1 {[%emt 0:00:04]} b4 {[%emt 0:00:06]} 49. Rg1+ {[%emt 0:00:01]} Kf5 {[%emt 0:00:03]} 50. Rh1 {[%emt 0:00:02]} Kg6 {[%emt 0:00:01]} 51. Ra1 {[%emt 0:00:02]} h5 {[%emt 0:00:02]} 52. Rh1 {[%emt 0:00:12]} b3 {[%emt 0:00:07]} 53. Kd3 {[%emt 0:00:15]} h4 {[%emt 0:00:07]} 54. Kc3 {[%emt 0:00:03]} Rf3+ {[%emt 0:00:06]} 55. Kd4 {[%emt 0:00:01]} h3 {[%emt 0:00:06]} 56. Ke4 {[%emt 0:00:03]} g4 {[%emt 0:00:04]} 57. Rc1 {[%emt 0:00:01]} Rf6 {[%emt 0:00:08]} 0-1

[Event "RUS-ch Rapid Men 2018"]
[Site "Sochi"]
[Date "2018.10.06"]
[Round "8"]
[White "Pashkov, Anatolij"]
[Black "Lugovskoy, Maxim"]
[Result "0-1"]
[ECO "C15"]
[WhiteElo "2196"]
[BlackElo "2428"]
[Annotator "NA"]
[PlyCount "62"]
[EventDate "2018.10.05"]
[EventType "swiss"]
[EventCountry "RUS"]
[SourceTitle "playchess.com"]
[Source "ChessBase"]
[SourceQuality "1"]
[TimeControl "900+10"]

1. e4 {[%emt 0:00:00]} e6 {[%emt 0:00:00]} 2. d4 {[%emt 0:00:00]} d5 {[%emt 0:00:00]} 3. Nc3 {[%emt 0:00:00]} Bb4 {[%emt 0:00:00]} 4. Bd2 {[%emt 0:00:00]} dxe4 {[%emt 0:00:00]} 5. Qg4 {[%emt 0:00:00]} Nf6 {[%emt 0:00:00]} 6. Qxg7 {[%emt 0:00:01]} Rg8 {[%emt 0:00:00]} 7. Qh6 {[%emt 0:00:00]} b6 {[%emt 0:02:07]} 8. O-O-O {[%emt 0:01:24]} Qe7 {[%emt 0:00:22]} 9. Nge2 {[%emt 0:03:15]} Nbd7 {[%emt 0:00:04]} 10. Bg5 {[%emt 0:01:32]} Bb7 {[%emt 0:00:20]} 11. Qh4 O-O-O 12. d5 {[%emt 0:01:57]} h6 {[%emt 0:02:33]} 13. Bxf6 {[%emt 0:04:07]} Nxf6 {[%emt 0:00:13]} 14. dxe6 {[%emt 0:00:15]} Rxd1+ {[%emt 0:00:04]} 15. Nxd1 {[%emt 0:01:01]} Qxe6 {[%emt 0:00:08]} 16. a3 {[%emt 0:02:30]} Be7 {[%emt 0:00:22]} 17. Nf4 {[%emt 0:00:32]} Qd7 {[%emt 0:01:08]} 18. Qh3 {[%emt 0:00:41]} Ng4 19. Be2 f5 {[%emt 0:00:36]} 20. f3 {[%emt 0:00:02]} Bg5 {[%emt 0:00:34]} 21. fxg4 {[%emt 0:00:42]} Bxf4+ 22. Kb1 fxg4 {[%emt 0:00:16]} 23. Qh5 {[%emt 0:00:01]} Kb8 {[%emt 0:00:41]} 24. Rf1 {[%emt 0:00:01]} Qd2 {[%emt 0:00:04]} 25. Bxg4 {[%emt 0:00:53]} Qc1+ {[%emt 0:00:04]} 26. Ka2 {[%emt 0:00:00]} Rd8 {[%emt 0:01:34]} 27. Rf2 {[%emt 0:00:20]} Bd5+ {[%emt 0:00:37]} 28. b3 {[%emt 0:00:01]} e3 {[%emt 0:00:11]} 29. Re2 {[%emt 0:00:02]} Qxd1 {[%emt 0:00:11]} 30. Rf2 {[%emt 0:00:30]} exf2 {[%emt 0:00:05]} 31. Bxd1 {[%emt 0:00:01]} f1=Q {[%emt 0:00:05]} 0-1

[Event "RUS-ch Rapid Men 2018"]
[Site "Sochi"]
[Date "2018.10.06"]
[Round "9"]
[White "Ponkratov, Pavel"]
[Black "Kobalia, Mikhail"]
[Result "1-0"]
[ECO "B46"]
[WhiteElo "2628"]
[BlackElo "2620"]
[Annotator "RC"]
[PlyCount "57"]
[EventDate "2018.10.05"]
[EventType "swiss"]
[EventCountry "RUS"]
[SourceTitle "playchess.com"]
[Source "ChessBase"]
[SourceQuality "1"]
[TimeControl "900+10"]

1. e4 {[%emt 0:00:07]} c5 {[%emt 0:00:05]} 2. Nf3 {[%emt 0:00:02]} e6 {[%emt 0:00:00]} 3. d4 {[%emt 0:00:12]} cxd4 {[%emt 0:00:01]} 4. Nxd4 {[%emt 0:00:01]} Nc6 {[%emt 0:00:01]} 5. Nc3 {[%emt 0:00:32]} a6 {[%emt 0:00:01]} 6. Be2 {[%emt 0:00:17]} d6 {[%emt 0:00:13]} 7. O-O {[%emt 0:00:04]} Nf6 {[%emt 0:00:02]} 8. Kh1 {[%emt 0:00:06]} Be7 {[%emt 0:00:07]} 9. f4 {[%emt 0:00:02]} Bd7 {[%emt 0:00:02]} 10. Nf3 {[%emt 0:00:12]} Qc7 {[%emt 0:00:04]} 11. a3 {[%emt 0:00:19]} b5 {[%emt 0:00:21]} 12. Qe1 {[%emt 0:00:05]} O-O {[%emt 0:00:23]} 13. Bd3 {[%emt 0:00:09]} b4 {[%emt 0:00:29]} 14. Nd1 {[%emt 0:00:03]} bxa3 {[%emt 0:00:11]} 15. bxa3 {[%emt 0:00:01]} Na5 {[%emt 0:00:32]} 16. e5 {[%emt 0:00:27]} Nd5 {[%emt 0:00:08]} 17. Bd2 {[%emt 0:00:02]} Nc6 {[%emt 0:00:20]} 18. Nf2 {[%emt 0:00:09]} f5 {[%emt 0:01:28]} 19. exf6 {[%emt 0:00:17]} Bxf6 {[%emt 0:00:07]} 20. Rd1 {[%emt 0:00:12]} Nce7 {[%emt 0:01:54]} 21. Ne4 {[%emt 0:00:15]} Ng6 {[%emt 0:01:31]} 22. Nfg5 {[%emt 0:01:13]} e5 {[%emt 0:03:10]} 23. Nxf6+ {[%emt 0:00:41]} Rxf6 {[%emt 0:00:43]} 24. Qe4 {[%emt 0:00:58]} Nb6 {[%emt 0:01:49]} 25. Nxh7 {[%emt 0:00:47]} Kxh7 {[%emt 0:00:25]} 26. fxe5 {[%emt 0:00:01]} Rxf1+ {[%emt 0:00:12]} 27. Rxf1 {[%emt 0:00:02]} Be8 {[%emt 0:00:00]} 28. Rf8 {[%emt 0:00:24]} Qe7 {[%emt 0:00:15]} 29. Qf5 {[%emt 0:00:28]} 1-0

[Event "RUS-ch Rapid Men 2018"]
[Site "Sochi"]
[Date "2018.10.06"]
[Round "9"]
[White "Antipov, Mikhail Al."]
[Black "Bocharov, Dmitry"]
[Result "0-1"]
[ECO "B40"]
[WhiteElo "2593"]
[BlackElo "2557"]
[Annotator "ChessBase"]
[PlyCount "92"]
[EventDate "2018.10.05"]
[EventType "swiss"]
[EventCountry "RUS"]
[SourceTitle "playchess.com"]
[Source "ChessBase"]
[SourceQuality "1"]
[TimeControl "900+10"]

1. e4 {[%emt 0:00:00]} c5 {[%emt 0:00:00]} 2. Nf3 {[%emt 0:00:00]} e6 {[%emt 0:00:00]} 3. b3 {[%emt 0:00:00]} b6 {[%emt 0:00:00]} 4. Bd3 {[%emt 0:00:00]} Bb7 {[%emt 0:00:00]} 5. O-O {[%emt 0:00:00]} Nf6 {[%emt 0:00:42]} 6. Re1 {[%emt 0:00:00]} Be7 {[%emt 0:00:02]} 7. Bb2 {[%emt 0:00:07]} d5 {[%emt 0:00:58]} 8. exd5 {[%emt 0:00:09]} Bxd5 {[%emt 0:00:50]} 9. Nc3 {[%emt 0:01:58]} Bb7 {[%emt 0:00:03]} 10. Ne4 {[%emt 0:00:29]} O-O {[%emt 0:00:51]} 11. Ne5 {[%emt 0:01:44]} Nc6 {[%emt 0:00:53]} 12. Nxc6 {[%emt 0:07:47]} Bxc6 {[%emt 0:00:14]} 13. Qf3 {[%emt 0:00:01]} Nxe4 {[%emt 0:02:37]} 14. Bxe4 {[%emt 0:00:17]} Bxe4 {[%emt 0:00:03]} 15. Qxe4 {[%emt 0:00:02]} Qxd2 {[%emt 0:02:51]} 16. Rad1 {[%emt 0:00:01]} Qg5 {[%emt 0:00:44]} 17. f4 {[%emt 0:03:19]} Qh4 {[%emt 0:01:46]} 18. g3 {[%emt 0:01:47]} Qh5 {[%emt 0:00:22]} 19. f5 {[%emt 0:00:02]} Rad8 {[%emt 0:00:28]} 20. Rxd8 {[%emt 0:00:10]} Rxd8 {[%emt 0:00:02]} 21. fxe6 {[%emt 0:00:01]} f6 {[%emt 0:00:34]} 22. Bc1 {[%emt 0:00:32]} h6 {[%emt 0:00:38]} 23. c4 {[%emt 0:00:11]} f5 {[%emt 0:01:11]} 24. Qc2 {[%emt 0:00:10]} Bf6 {[%emt 0:01:10]} 25. Kg2 {[%emt 0:00:07]} Kf8 {[%emt 0:01:20]} 26. Bb2 {[%emt 0:00:10]} Ke7 {[%emt 0:00:30]} 27. Bxf6+ {[%emt 0:00:11]} gxf6 {[%emt 0:00:01]} 28. b4 {[%emt 0:00:05]} Qg4 {[%emt 0:00:30]} 29. bxc5 {[%emt 0:00:08]} Qd4 {[%emt 0:00:12]} 30. Qxf5 {[%emt 0:00:16]} Qd2+ {[%emt 0:00:01]} 31. Kf1 {[%emt 0:00:07]} Qd3+ {[%emt 0:00:11]} 32. Qxd3 {[%emt 0:00:01]} Rxd3 {[%emt 0:00:01]} 33. cxb6 {[%emt 0:00:02]} axb6 {[%emt 0:00:01]} 34. Rb1 {[%emt 0:00:25]} Ra3 {[%emt 0:00:11]} 35. Rxb6 {[%emt 0:00:16]} Rxa2 {[%emt 0:00:02]} 36. h4 {[%emt 0:00:06]} Rc2 {[%emt 0:00:02]} 37. Rc6 {[%emt 0:00:03]} h5 {[%emt 0:00:08]} 38. g4 {[%emt 0:00:21]} hxg4 {[%emt 0:00:03]} 39. h5 {[%emt 0:00:00]} Rh2 {[%emt 0:00:07]} 40. Rc7+ {[%emt 0:00:14]} Kxe6 {[%emt 0:00:01]} 41. Rh7 {[%emt 0:00:01]} Kf5 {[%emt 0:00:37]} 42. h6 {[%emt 0:00:06]} Kf4 {[%emt 0:00:10]} 43. Rh8 {[%emt 0:00:30]} Kf3 {[%emt 0:00:28]} 44. Ke1 {[%emt 0:00:05]} g3 {[%emt 0:00:12]} 45. Ra8 {[%emt 0:00:14]} Rh1+ {[%emt 0:00:18]} 46. Kd2 {[%emt 0:00:00]} g2 {[%emt 0:00:01]} 0-1

[Event "RUS-ch Rapid Men 2018"]
[Site "Sochi"]
[Date "2018.10.06"]
[Round "9"]
[White "Timofeev, Artyom"]
[Black "Kezin, Roman"]
[Result "1-0"]
[ECO "D45"]
[WhiteElo "2580"]
[BlackElo "2471"]
[Annotator "ChessBase"]
[PlyCount "67"]
[EventDate "2018.10.05"]
[EventType "swiss"]
[EventCountry "RUS"]
[SourceTitle "playchess.com"]
[Source "ChessBase"]
[SourceQuality "1"]
[TimeControl "900+10"]

1. c4 {[%emt 0:00:00]} e6 {[%emt 0:00:00]} 2. Nc3 {[%emt 0:00:01]} d5 {[%emt 0:00:00]} 3. d4 {[%emt 0:00:02]} c6 {[%emt 0:00:00]} 4. Nf3 {[%emt 0:00:25]} Nf6 {[%emt 0:00:02]} 5. e3 {[%emt 0:00:03]} Nbd7 {[%emt 0:00:03]} 6. Be2 {[%emt 0:00:23]} dxc4 {[%emt 0:00:23]} 7. a4 {[%emt 0:00:04]} Bb4 {[%emt 0:00:03]} 8. Bxc4 {[%emt 0:00:19]} O-O {[%emt 0:00:04]} 9. O-O {[%emt 0:00:04]} Qe7 {[%emt 0:00:03]} 10. Qc2 {[%emt 0:01:08]} b6 {[%emt 0:04:25]} 11. e4 {[%emt 0:00:16]} e5 {[%emt 0:00:02]} 12. Bg5 {[%emt 0:00:15]} Bb7 {[%emt 0:00:21]} 13. Ne2 {[%emt 0:00:58]} exd4 {[%emt 0:02:23]} 14. Nexd4 {[%emt 0:00:03]} Qxe4 {[%emt 0:01:27]} 15. Bd3 {[%emt 0:00:02]} Qd5 {[%emt 0:00:01]} 16. Rad1 {[%emt 0:00:06]} h6 {[%emt 0:00:48]} 17. Bh4 {[%emt 0:00:04]} Qh5 {[%emt 0:01:40]} 18. Nf5 {[%emt 0:00:26]} c5 {[%emt 0:04:14]} 19. Ng3 {[%emt 0:00:08]} Qg4 {[%emt 0:00:02]} 20. Bf5 {[%emt 0:02:49]} Qf4 {[%emt 0:00:06]} 21. Ne2 {[%emt 0:00:02]} Qc7 {[%emt 0:00:30]} 22. Bg3 {[%emt 0:00:03]} Qc8 {[%emt 0:00:26]} 23. Ne5 {[%emt 0:00:23]} Rd8 {[%emt 0:01:24]} 24. Qb3 {[%emt 0:01:11]} Bd5 {[%emt 0:00:09]} 25. Rxd5 {[%emt 0:00:33]} Nxd5 {[%emt 0:00:04]} 26. Qxd5 {[%emt 0:01:55]} Nxe5 {[%emt 0:00:04]} 27. Qxe5 {[%emt 0:00:01]} Qa6 {[%emt 0:00:01]} 28. Nc3 {[%emt 0:00:02]} Re8 {[%emt 0:00:28]} 29. Qf4 {[%emt 0:00:28]} Rad8 {[%emt 0:00:12]} 30. Nb5 {[%emt 0:01:35]} Qxa4 {[%emt 0:00:16]} 31. Nd6 {[%emt 0:00:02]} Rf8 {[%emt 0:00:17]} 32. Bh4 {[%emt 0:00:37]} Rb8 {[%emt 0:00:10]} 33. Bf6 {[%emt 0:00:29]} gxf6 {[%emt 0:00:11]} 34. Qxh6 {[%emt 0:00:03]} 1-0